[Event "*** Titled Tuesday Blitz"]
[Site "Chess.com"]
[Date "2021.03.02"]
[Round "7"]
[White "Rsnr"]
[Black "Anton_Demchenko"]
[Result "0-1"]
[WhiteElo "2778"]
[BlackElo "2919"]
[TimeControl "180+1"]
[EndTime "11:18:42 PST"]
[Termination "Anton_Demchenko won by checkmate"]

1. d4 {[%clk 0:03:00.9]} 1... Nf6 {[%clk 0:02:59.6]} 2. c4 {[%clk 0:03:01.5]}
2... g6 {[%clk 0:02:58.1]} 3. g3 {[%clk 0:03:01.7]} 3... Bg7 {[%clk 0:02:58.6]}
4. Bg2 {[%clk 0:03:02.3]} 4... O-O {[%clk 0:02:59.5]} 5. Nc3 {[%clk 0:03:02.9]}
5... d6 {[%clk 0:03:00.4]} 6. Nf3 {[%clk 0:03:03.6]} 6... Nbd7 {[%clk 0:02:59]}
7. O-O {[%clk 0:03:03.9]} 7... e5 {[%clk 0:02:59.7]} 8. h3 {[%clk 0:03:04.6]}
8... exd4 {[%clk 0:03:00.2]} 9. Nxd4 {[%clk 0:03:05.5]} 9... Re8 {[%clk
0:03:00]} 10. e4 {[%clk 0:03:06.1]} 10... Nc5 {[%clk 0:02:59.4]} 11. Re1 {[%clk
0:03:06.6]} 11... a5 {[%clk 0:02:59.7]} 12. Qc2 {[%clk 0:03:05.3]} 12... a4
{[%clk 0:02:55]} 13. Be3 {[%clk 0:03:03.2]} 13... c6 {[%clk 0:02:55]} 14. Rad1
{[%clk 0:02:58.8]} 14... Qa5 {[%clk 0:02:55.4]} 15. Nde2 {[%clk 0:02:44.2]}
15... Nfd7 {[%clk 0:02:54.6]} 16. Rxd6 {[%clk 0:02:41.8]} 16... Ne5 {[%clk
0:02:54.4]} 17. b3 {[%clk 0:02:29.6]} 17... axb3 {[%clk 0:02:30.5]} 18. axb3
{[%clk 0:02:30.5]} 18... Bxh3 {[%clk 0:02:30.4]} 19. Bxh3 {[%clk 0:02:31.4]}
19... Nf3+ {[%clk 0:02:30.2]} 20. Kf1 {[%clk 0:02:32.3]} 20... Nxe1 {[%clk
0:02:27.8]} 21. Kxe1 {[%clk 0:02:33.2]} 21... Nxe4 {[%clk 0:02:04.5]} 22. Rd3
{[%clk 0:00:38.5]} 22... Nxc3 {[%clk 0:01:58.8]} 23. Nxc3 {[%clk 0:00:36.2]}
23... Rad8 {[%clk 0:01:58.3]} 24. Rxd8 {[%clk 0:00:18.8]} 24... Rxd8 {[%clk
0:01:59.2]} 25. Bd2 {[%clk 0:00:16.7]} 25... Qa1+ {[%clk 0:00:43.8]} 26. Ke2
{[%clk 0:00:04.5]} 26... Qh1 {[%clk 0:00:25.9]} 27. Bg4 {[%clk 0:00:04.7]} 27...
h5 {[%clk 0:00:15.2]} 28. Bf3 {[%clk 0:00:04.8]} 28... Qa1 {[%clk 0:00:16.1]}
29. Ne4 {[%clk 0:00:03.9]} 29... Re8 {[%clk 0:00:14.9]} 30. Ke3 {[%clk 0:00:02]}
30... f5 {[%clk 0:00:13.8]} 31. Bc3 {[%clk 0:00:01.2]} 31... Bxc3 {[%clk
0:00:12.6]} 32. Kf4 {[%clk 0:00:02]} 32... fxe4 {[%clk 0:00:12]} 33. Bxe4 {[%clk
0:00:02.9]} 33... Bg7 {[%clk 0:00:07]} 34. f3 {[%clk 0:00:01.4]} 34... Qf6+
{[%clk 0:00:07.5]} 35. Ke3 {[%clk 0:00:02.3]} 35... Qd4+ {[%clk 0:00:07.6]} 36.
Kf4 {[%clk 0:00:02.6]} 36... Bh6# {[%clk 0:00:07.2]} 0-1

[Event "*** Titled Tuesday Blitz"]
[Site "Chess.com"]
[Date "2021.03.02"]
[Round "7"]
[White "Balla_Tamas"]
[Black "saikrishnaReturns"]
[Result "0-1"]
[WhiteElo "2512"]
[BlackElo "2658"]
[TimeControl "180+1"]
[EndTime "11:18:42 PST"]
[Termination "saikrishnaReturns won on time"]

1. e4 {[%clk 0:03:00.9]} 1... e5 {[%clk 0:02:59.9]} 2. Nf3 {[%clk 0:03:00.2]}
2... Nc6 {[%clk 0:03:00.5]} 3. d4 {[%clk 0:03:00.5]} 3... exd4 {[%clk
0:03:00.5]} 4. Nxd4 {[%clk 0:03:01.4]} 4... Nf6 {[%clk 0:03:00.1]} 5. Nxc6
{[%clk 0:02:59.3]} 5... bxc6 {[%clk 0:03:01]} 6. Nc3 {[%clk 0:02:58.2]} 6... d5
{[%clk 0:02:49.3]} 7. exd5 {[%clk 0:02:55.8]} 7... cxd5 {[%clk 0:02:50.2]} 8.
Bb5+ {[%clk 0:02:54.5]} 8... Bd7 {[%clk 0:02:50]} 9. O-O {[%clk 0:02:52.8]} 9...
c6 {[%clk 0:02:43.1]} 10. Re1+ {[%clk 0:02:51.4]} 10... Be7 {[%clk 0:02:43]} 11.
Bd3 {[%clk 0:02:48.1]} 11... O-O {[%clk 0:02:42.8]} 12. h3 {[%clk 0:02:47.6]}
12... h6 {[%clk 0:02:38.8]} 13. Bf4 {[%clk 0:02:45.5]} 13... Re8 {[%clk
0:02:33.8]} 14. Qf3 {[%clk 0:02:40.9]} 14... Qb6 {[%clk 0:02:29.8]} 15. b3
{[%clk 0:02:37.9]} 15... Bb4 {[%clk 0:02:19.2]} 16. Rxe8+ {[%clk 0:02:26.6]}
16... Rxe8 {[%clk 0:02:20.1]} 17. Na4 {[%clk 0:02:26.4]} 17... Qd8 {[%clk
0:02:18.2]} 18. Rd1 {[%clk 0:02:23.1]} 18... Ne4 {[%clk 0:02:04.6]} 19. c4
{[%clk 0:02:16.6]} 19... Qf6 {[%clk 0:01:47.2]} 20. Bxe4 {[%clk 0:01:58.4]}
20... dxe4 {[%clk 0:01:37.6]} 21. Qe3 {[%clk 0:01:55.8]} 21... Bc8 {[%clk
0:01:30.6]} 22. c5 {[%clk 0:01:15.4]} 22... Ba6 {[%clk 0:01:17.7]} 23. Rd4
{[%clk 0:01:13.2]} 23... Ba3 {[%clk 0:01:03.5]} 24. Rxe4 {[%clk 0:01:10.5]}
24... Rxe4 {[%clk 0:01:00.1]} 25. Qxe4 {[%clk 0:01:10.5]} 25... Bb5 {[%clk
0:00:59.6]} 26. Be5 {[%clk 0:01:06.6]} 26... Qe7 {[%clk 0:00:48.4]} 27. Qd4
{[%clk 0:00:36.1]} 27... Bxa4 {[%clk 0:00:47.2]} 28. Qxa4 {[%clk 0:00:23.1]}
28... Bxc5 {[%clk 0:00:33.7]} 29. Bg3 {[%clk 0:00:23.3]} 29... Qe1+ {[%clk
0:00:24.5]} 30. Kh2 {[%clk 0:00:18.8]} 30... Bxf2 {[%clk 0:00:25.4]} 31. Bxf2
{[%clk 0:00:18.7]} 31... Qxf2 {[%clk 0:00:26.2]} 32. Qxc6 {[%clk 0:00:19]} 32...
g6 {[%clk 0:00:18.8]} 33. a4 {[%clk 0:00:17.5]} 33... Qf4+ {[%clk 0:00:17.5]}
34. Kh1 {[%clk 0:00:10]} 34... Qf1+ {[%clk 0:00:17.3]} 35. Kh2 {[%clk
0:00:08.8]} 35... Qf4+ {[%clk 0:00:18.2]} 36. Kh1 {[%clk 0:00:02.7]} 36... Qe3
{[%clk 0:00:18.8]} 37. Qc4 {[%clk 0:00:01.6]} 37... a5 {[%clk 0:00:15.2]} 0-1

[Event "*** Titled Tuesday Blitz"]
[Site "Chess.com"]
[Date "2021.03.02"]
[Round "7"]
[White "carloseduar100"]
[Black "VladaSviridova"]
[Result "0-1"]
[WhiteElo "2084"]
[BlackElo "2226"]
[TimeControl "180+1"]
[EndTime "11:18:42 PST"]
[Termination "VladaSviridova won by checkmate"]

1. e4 {[%clk 0:01:06.8]} 1... e6 {[%clk 0:02:58.2]} 2. d3 {[%clk 0:01:05.5]}
2... d5 {[%clk 0:02:58.5]} 3. Nd2 {[%clk 0:01:06.4]} 3... Nf6 {[%clk 0:02:58.4]}
4. Ngf3 {[%clk 0:01:06.6]} 4... c5 {[%clk 0:02:58.4]} 5. g3 {[%clk 0:01:06.9]}
5... g6 {[%clk 0:02:58.5]} 6. Bg2 {[%clk 0:01:07.4]} 6... Bg7 {[%clk 0:02:59.2]}
7. O-O {[%clk 0:01:08.3]} 7... O-O {[%clk 0:02:59.8]} 8. Re1 {[%clk 0:01:09]}
8... Nc6 {[%clk 0:02:57.9]} 9. c3 {[%clk 0:01:09.3]} 9... a5 {[%clk 0:02:49.5]}
10. h4 {[%clk 0:01:09.3]} 10... a4 {[%clk 0:02:48.9]} 11. a3 {[%clk 0:01:08.9]}
11... b5 {[%clk 0:02:23.5]} 12. Re2 {[%clk 0:01:05.8]} 12... Bb7 {[%clk
0:02:08.9]} 13. Qe1 {[%clk 0:00:54.8]} 13... b4 {[%clk 0:02:05]} 14. e5 {[%clk
0:00:46.9]} 14... Nd7 {[%clk 0:02:02.5]} 15. d4 {[%clk 0:00:47]} 15... Ba6
{[%clk 0:01:57]} 16. Re3 {[%clk 0:00:46]} 16... bxc3 {[%clk 0:01:45.1]} 17. bxc3
{[%clk 0:00:45.6]} 17... Na5 {[%clk 0:01:44.8]} 18. Ng5 {[%clk 0:00:43.8]} 18...
h6 {[%clk 0:01:43.4]} 19. Ngf3 {[%clk 0:00:43.7]} 19... Rb8 {[%clk 0:01:31.7]}
20. Nf1 {[%clk 0:00:43.6]} 20... Nc4 {[%clk 0:01:28.6]} 21. N1h2 {[%clk
0:00:43.7]} 21... Nxe3 {[%clk 0:01:28.2]} 22. Bxe3 {[%clk 0:00:44.4]} 22... cxd4
{[%clk 0:01:20.9]} 23. cxd4 {[%clk 0:00:44]} 23... Nb6 {[%clk 0:01:19.9]} 24.
Ng4 {[%clk 0:00:43.1]} 24... Kh7 {[%clk 0:01:06.3]} 25. Qc1 {[%clk 0:00:28.4]}
25... Rc8 {[%clk 0:01:06.1]} 26. Qd1 {[%clk 0:00:25.8]} 26... Nc4 {[%clk
0:01:01.6]} 27. Bc1 {[%clk 0:00:17.2]} 27... Qa5 {[%clk 0:00:55.7]} 28. h5
{[%clk 0:00:14.4]} 28... Qc3 {[%clk 0:00:51.8]} 29. hxg6+ {[%clk 0:00:13.9]}
29... fxg6 {[%clk 0:00:51.7]} 30. Nh4 {[%clk 0:00:14]} 30... Qxa1 {[%clk
0:00:45.3]} 31. Kh2 {[%clk 0:00:14.1]} 31... Nb2 {[%clk 0:00:40.8]} 32. Qd2
{[%clk 0:00:08.2]} 32... Qxc1 {[%clk 0:00:39.3]} 33. Qa5 {[%clk 0:00:07.9]}
33... Be2 {[%clk 0:00:36]} 34. Ne3 {[%clk 0:00:07.1]} 34... Nc4 {[%clk
0:00:32.5]} 35. Qa7 {[%clk 0:00:06.6]} 35... Nxe3 {[%clk 0:00:31]} 36. fxe3
{[%clk 0:00:06.7]} 36... Qxe3 {[%clk 0:00:30.2]} 37. Qe7 {[%clk 0:00:06.7]}
37... Bg4 {[%clk 0:00:28.8]} 38. Qd6 {[%clk 0:00:03.6]} 38... Rc2 {[%clk
0:00:25.9]} 39. Kh1 {[%clk 0:00:03.1]} 39... Qxg3 {[%clk 0:00:23.6]} 40. Qe7
{[%clk 0:00:01.7]} 40... Rxg2 {[%clk 0:00:22.5]} 41. Nxg2 {[%clk 0:00:01.4]}
41... Rf1# {[%clk 0:00:22.1]} 0-1

[Event "*** Titled Tuesday Blitz"]
[Site "Chess.com"]
[Date "2021.03.02"]
[Round "7"]
[White "mikolka1985"]
[Black "JoakimVonAnd"]
[Result "1-0"]
[WhiteElo "2649"]
[BlackElo "2507"]
[TimeControl "180+1"]
[EndTime "11:18:43 PST"]
[Termination "mikolka1985 won on time"]

1. d4 {[%clk 0:03:00.9]} 1... Nf6 {[%clk 0:02:59.2]} 2. c4 {[%clk 0:02:58.1]}
2... c5 {[%clk 0:02:59.5]} 3. d5 {[%clk 0:02:57.3]} 3... b5 {[%clk 0:02:59.6]}
4. cxb5 {[%clk 0:02:56.4]} 4... a6 {[%clk 0:02:59.2]} 5. bxa6 {[%clk 0:02:56.5]}
5... g6 {[%clk 0:02:59.3]} 6. Nc3 {[%clk 0:02:55.9]} 6... Bg7 {[%clk 0:02:58.8]}
7. e4 {[%clk 0:02:55.7]} 7... d6 {[%clk 0:02:53.6]} 8. Bb5+ {[%clk 0:02:40.2]}
8... Bd7 {[%clk 0:02:50.3]} 9. Bxd7+ {[%clk 0:02:32.2]} 9... Nbxd7 {[%clk
0:02:46.1]} 10. Nf3 {[%clk 0:02:32.1]} 10... O-O {[%clk 0:02:44.8]} 11. O-O
{[%clk 0:02:32.2]} 11... Rxa6 {[%clk 0:02:43.9]} 12. Qc2 {[%clk 0:02:30.7]}
12... Qa8 {[%clk 0:02:36.7]} 13. a4 {[%clk 0:02:29.5]} 13... Rb8 {[%clk
0:02:31]} 14. Ra3 {[%clk 0:02:28.9]} 14... Nb6 {[%clk 0:02:19.7]} 15. Nb5 {[%clk
0:02:27.6]} 15... Rxa4 {[%clk 0:02:16.5]} 16. b3 {[%clk 0:02:17.8]} 16... Rxa3
{[%clk 0:02:14.2]} 17. Nxa3 {[%clk 0:02:17.6]} 17... Nbd7 {[%clk 0:02:08.8]} 18.
Nc4 {[%clk 0:02:16.4]} 18... Qb7 {[%clk 0:02:03.4]} 19. Na5 {[%clk 0:02:12.7]}
19... Qb5 {[%clk 0:01:59.5]} 20. Bd2 {[%clk 0:02:12.5]} 20... Ra8 {[%clk
0:01:53.2]} 21. Nc6 {[%clk 0:02:10.9]} 21... Kf8 {[%clk 0:01:50.7]} 22. Re1
{[%clk 0:02:03.7]} 22... Ra3 {[%clk 0:01:20.8]} 23. b4 {[%clk 0:02:02.8]} 23...
Qa4 {[%clk 0:01:13.6]} 24. Qc1 {[%clk 0:01:44.1]} 24... Nxe4 {[%clk 0:00:56.5]}
25. Bh6 {[%clk 0:01:43.4]} 25... cxb4 {[%clk 0:00:33.1]} 26. Qf4 {[%clk
0:00:57.2]} 26... Ndf6 {[%clk 0:00:23.7]} 27. h4 {[%clk 0:00:32.2]} 27... Ra1
{[%clk 0:00:23.3]} 28. h5 {[%clk 0:00:16.7]} 28... Rxe1+ {[%clk 0:00:21.5]} 29.
Nxe1 {[%clk 0:00:16.3]} 29... Qd1 {[%clk 0:00:21.6]} 30. Bxg7+ {[%clk
0:00:15.1]} 30... Kxg7 {[%clk 0:00:20.4]} 31. h6+ {[%clk 0:00:15.4]} 31... Kf8
{[%clk 0:00:20.9]} 32. Qe3 {[%clk 0:00:16.3]} 32... Qa1 {[%clk 0:00:10.6]} 33.
f3 {[%clk 0:00:15.7]} 33... Qc3 {[%clk 0:00:07.7]} 34. Qe2 {[%clk 0:00:13.7]}
34... Qc5+ {[%clk 0:00:07.1]} 35. Kh2 {[%clk 0:00:12.9]} 35... Nc3 {[%clk
0:00:05.4]} 36. Qxe7+ {[%clk 0:00:12]} 36... Kg8 {[%clk 0:00:03.5]} 37. Qd8+
{[%clk 0:00:12.1]} 1-0

[Event "*** Titled Tuesday Blitz"]
[Site "Chess.com"]
[Date "2021.03.02"]
[Round "7"]
[White "pirulillo"]
[Black "InitiatingASC"]
[Result "0-1"]
[WhiteElo "2257"]
[BlackElo "2449"]
[TimeControl "180+1"]
[EndTime "11:18:43 PST"]
[Termination "InitiatingASC won by resignation"]

1. e4 {[%clk 0:03:00.9]} 1... c5 {[%clk 0:02:59.9]} 2. Nf3 {[%clk 0:03:00.3]}
2... Nc6 {[%clk 0:03:00.3]} 3. Bb5 {[%clk 0:02:59.5]} 3... Nf6 {[%clk
0:03:00.5]} 4. e5 {[%clk 0:02:57.4]} 4... Nd5 {[%clk 0:03:00.4]} 5. Nc3 {[%clk
0:02:56.8]} 5... Nc7 {[%clk 0:03:00.3]} 6. Bxc6 {[%clk 0:02:56]} 6... dxc6
{[%clk 0:03:00.4]} 7. Ne4 {[%clk 0:02:53.8]} 7... b6 {[%clk 0:02:57.8]} 8. Qe2
{[%clk 0:02:52]} 8... Ne6 {[%clk 0:02:55.7]} 9. d3 {[%clk 0:02:49.6]} 9... Nd4
{[%clk 0:02:55.7]} 10. Nxd4 {[%clk 0:02:47.6]} 10... cxd4 {[%clk 0:02:56.6]} 11.
O-O {[%clk 0:02:41.9]} 11... Bb7 {[%clk 0:02:54.8]} 12. Bg5 {[%clk 0:02:05.4]}
12... Qd5 {[%clk 0:02:52.3]} 13. c4 {[%clk 0:01:49.8]} 13... Qxe5 {[%clk
0:02:37]} 14. Rae1 {[%clk 0:01:34.3]} 14... c5 {[%clk 0:02:01.1]} 15. Qf3 {[%clk
0:01:06.7]} 15... O-O-O {[%clk 0:01:31.6]} 16. Qh3+ {[%clk 0:00:47.3]} 16... Kb8
{[%clk 0:01:02.5]} 17. Bh4 {[%clk 0:00:42.5]} 17... Qc7 {[%clk 0:00:55.3]} 18.
Bg3 {[%clk 0:00:40.5]} 18... e5 {[%clk 0:00:55.3]} 19. f4 {[%clk 0:00:39.6]}
19... f6 {[%clk 0:00:50.5]} 20. fxe5 {[%clk 0:00:38.5]} 20... fxe5 {[%clk
0:00:50.7]} 21. Qh5 {[%clk 0:00:33]} 21... Bxe4 {[%clk 0:00:39.7]} 22. Rxe4
{[%clk 0:00:33.9]} 22... Bd6 {[%clk 0:00:39.3]} 23. Rf7 {[%clk 0:00:32.9]} 23...
g6 {[%clk 0:00:35.3]} 24. Qf3 {[%clk 0:00:31.5]} 24... Qc6 {[%clk 0:00:32.4]}
25. Qf6 {[%clk 0:00:26.2]} 25... Rhf8 {[%clk 0:00:28.8]} 26. Bxe5 {[%clk
0:00:15.7]} 26... Rxf7 {[%clk 0:00:29.1]} 27. Qxf7 {[%clk 0:00:13.2]} 27... Bxe5
{[%clk 0:00:22.6]} 28. Rxe5 {[%clk 0:00:14.1]} 28... Rd7 {[%clk 0:00:22.3]} 29.
Qe8+ {[%clk 0:00:13.5]} 29... Kc7 {[%clk 0:00:19.6]} 30. Re7 {[%clk 0:00:13.4]}
30... Rxe7 {[%clk 0:00:18.6]} 31. Qxe7+ {[%clk 0:00:13.7]} 31... Qd7 {[%clk
0:00:19.5]} 32. Qxd7+ {[%clk 0:00:13.7]} 32... Kxd7 {[%clk 0:00:19.8]} 33. Kf2
{[%clk 0:00:14.6]} 33... Ke6 {[%clk 0:00:20.6]} 34. Kf3 {[%clk 0:00:15.4]} 34...
Kf5 {[%clk 0:00:21.2]} 35. g4+ {[%clk 0:00:15.5]} 35... Ke5 {[%clk 0:00:19.9]}
36. h4 {[%clk 0:00:15.9]} 36... h6 {[%clk 0:00:20]} 37. Kg3 {[%clk 0:00:15.5]}
37... a6 {[%clk 0:00:20.3]} 38. Kf3 {[%clk 0:00:15.8]} 38... g5 {[%clk
0:00:16.4]} 39. b3 {[%clk 0:00:16.7]} 39... gxh4 {[%clk 0:00:16.1]} 40. a3
{[%clk 0:00:14.9]} 40... a5 {[%clk 0:00:14.9]} 41. a4 {[%clk 0:00:14.9]} 41...
Kf6 {[%clk 0:00:13.6]} 42. Kf4 {[%clk 0:00:14]} 42... Kg6 {[%clk 0:00:13.9]} 0-1

[Event "*** Titled Tuesday Blitz"]
[Site "Chess.com"]
[Date "2021.03.02"]
[Round "7"]
[White "bylavochka"]
[Black "HajiyevKanan"]
[Result "1-0"]
[WhiteElo "2214"]
[BlackElo "2423"]
[TimeControl "180+1"]
[EndTime "11:18:43 PST"]
[Termination "bylavochka won by checkmate"]

1. e4 {[%clk 0:03:00.9]} 1... c6 {[%clk 0:02:57.8]} 2. d4 {[%clk 0:03:01]} 2...
d5 {[%clk 0:02:58.7]} 3. e5 {[%clk 0:03:01.7]} 3... a6 {[%clk 0:02:58.7]} 4. c4
{[%clk 0:02:58.4]} 4... Bf5 {[%clk 0:02:58]} 5. Nc3 {[%clk 0:02:58.3]} 5... e6
{[%clk 0:02:58.4]} 6. h4 {[%clk 0:02:58.4]} 6... h6 {[%clk 0:02:58.1]} 7. Nge2
{[%clk 0:02:36.2]} 7... dxc4 {[%clk 0:02:57.1]} 8. Ng3 {[%clk 0:02:32.5]} 8...
Bd3 {[%clk 0:02:57.8]} 9. Bxd3 {[%clk 0:02:29.4]} 9... cxd3 {[%clk 0:02:58.7]}
10. Qxd3 {[%clk 0:02:30.2]} 10... Nd7 {[%clk 0:02:58.7]} 11. Qe2 {[%clk
0:02:23.6]} 11... Ne7 {[%clk 0:02:57.9]} 12. Be3 {[%clk 0:02:14.1]} 12... Nd5
{[%clk 0:02:57]} 13. Nge4 {[%clk 0:02:08]} 13... Be7 {[%clk 0:02:51.5]} 14. g3
{[%clk 0:01:52.9]} 14... Qa5 {[%clk 0:02:42]} 15. O-O {[%clk 0:01:49.2]} 15...
O-O {[%clk 0:02:40.5]} 16. Bd2 {[%clk 0:01:44.4]} 16... Qb6 {[%clk 0:02:39.5]}
17. Be3 {[%clk 0:01:38.1]} 17... a5 {[%clk 0:02:39.4]} 18. Rfd1 {[%clk
0:01:31.7]} 18... a4 {[%clk 0:02:39.1]} 19. a3 {[%clk 0:01:26]} 19... Kh8 {[%clk
0:02:34.6]} 20. Bc1 {[%clk 0:01:12.2]} 20... f5 {[%clk 0:02:20.1]} 21. exf6
{[%clk 0:01:01.8]} 21... N7xf6 {[%clk 0:02:20.1]} 22. Nxf6 {[%clk 0:00:27.4]}
22... Bxf6 {[%clk 0:02:10.6]} 23. Be3 {[%clk 0:00:24.8]} 23... Rf7 {[%clk
0:02:04.3]} 24. Ne4 {[%clk 0:00:21.6]} 24... Be7 {[%clk 0:02:04]} 25. Nc5 {[%clk
0:00:12.1]} 25... Bxc5 {[%clk 0:02:03.1]} 26. dxc5 {[%clk 0:00:13]} 26... Qc7
{[%clk 0:02:02.2]} 27. Bd4 {[%clk 0:00:13.5]} 27... e5 {[%clk 0:01:46.4]} 28.
Qxe5 {[%clk 0:00:12.2]} 28... Qxe5 {[%clk 0:01:44.5]} 29. Bxe5 {[%clk
0:00:13.1]} 29... Re8 {[%clk 0:01:44.7]} 30. Bd4 {[%clk 0:00:11.1]} 30... Re2
{[%clk 0:01:43.3]} 31. Re1 {[%clk 0:00:11.6]} 31... Rd2 {[%clk 0:01:40.9]} 32.
Rad1 {[%clk 0:00:11.7]} 32... Rxd1 {[%clk 0:01:40.4]} 33. Rxd1 {[%clk
0:00:12.6]} 33... Re7 {[%clk 0:01:41.1]} 34. Kf1 {[%clk 0:00:12.2]} 34... Kg8
{[%clk 0:01:41.4]} 35. Re1 {[%clk 0:00:12.2]} 35... Rd7 {[%clk 0:01:32.1]} 36.
Re8+ {[%clk 0:00:07]} 36... Kf7 {[%clk 0:01:31.8]} 37. Ra8 {[%clk 0:00:06.8]}
37... Nc7 {[%clk 0:01:29.6]} 38. Rxa4 {[%clk 0:00:06.8]} 38... Nb5 {[%clk
0:01:29.7]} 39. Be3 {[%clk 0:00:06.8]} 39... h5 {[%clk 0:01:28.2]} 40. Rf4+
{[%clk 0:00:06.5]} 40... Kg6 {[%clk 0:01:27.4]} 41. a4 {[%clk 0:00:06.9]} 41...
Nc7 {[%clk 0:01:27.5]} 42. Rb4 {[%clk 0:00:07]} 42... Nd5 {[%clk 0:01:27.9]} 43.
Rb3 {[%clk 0:00:07.1]} 43... Rf7 {[%clk 0:01:28.3]} 44. Ke2 {[%clk 0:00:06.8]}
44... Kf5 {[%clk 0:01:28.1]} 45. Rd3 {[%clk 0:00:04.3]} 45... Re7 {[%clk
0:01:28.3]} 46. Rd4 {[%clk 0:00:03.3]} 46... g6 {[%clk 0:01:27.4]} 47. b4 {[%clk
0:00:03.4]} 47... Nc3+ {[%clk 0:01:23.7]} 48. Kd3 {[%clk 0:00:03.2]} 48... Nxa4
{[%clk 0:01:21.7]} 49. Kc4 {[%clk 0:00:02.2]} 49... Re4 {[%clk 0:01:18.3]} 50.
Rxe4 {[%clk 0:00:01.2]} 50... Kxe4 {[%clk 0:01:18.8]} 51. Kb3 {[%clk 0:00:02.1]}
51... Nxc5+ {[%clk 0:01:13.7]} 52. bxc5 {[%clk 0:00:03]} 52... Kd3 {[%clk
0:01:13.5]} 53. Kb4 {[%clk 0:00:02.8]} 53... Kc2 {[%clk 0:01:13.5]} 54. Ka5
{[%clk 0:00:03.2]} 54... g5 {[%clk 0:01:13.4]} 55. hxg5 {[%clk 0:00:03.3]} 55...
Kd3 {[%clk 0:01:13.7]} 56. Kb6 {[%clk 0:00:03.7]} 56... Ke4 {[%clk 0:01:13.9]}
57. Kxb7 {[%clk 0:00:03.9]} 57... Kf5 {[%clk 0:01:14.2]} 58. Kxc6 {[%clk
0:00:04.1]} 58... Kg4 {[%clk 0:01:14.7]} 59. Kd5 {[%clk 0:00:04.1]} 59... Kf3
{[%clk 0:01:15.2]} 60. c6 {[%clk 0:00:04.5]} 60... h4 {[%clk 0:01:15.8]} 61.
gxh4 {[%clk 0:00:04.4]} 61... Kg4 {[%clk 0:01:16.4]} 62. g6 {[%clk 0:00:04.7]}
62... Kf5 {[%clk 0:01:16.8]} 63. g7 {[%clk 0:00:05]} 63... Kf6 {[%clk
0:01:17.7]} 64. g8=Q {[%clk 0:00:04.9]} 64... Ke7 {[%clk 0:01:18.6]} 65. Qg7+
{[%clk 0:00:05]} 65... Ke8 {[%clk 0:01:18.3]} 66. Qd7+ {[%clk 0:00:05]} 66...
Kf8 {[%clk 0:01:18.7]} 67. Bh6+ {[%clk 0:00:04.8]} 67... Kg8 {[%clk 0:01:19.2]}
68. Qg7# {[%clk 0:00:05.5]} 1-0

[Event "*** Titled Tuesday Blitz"]
[Site "Chess.com"]
[Date "2021.03.02"]
[Round "7"]
[White "DFeco"]
[Black "Vamostodorecto"]
[Result "0-1"]
[WhiteElo "2251"]
[BlackElo "2415"]
[TimeControl "180+1"]
[EndTime "11:18:43 PST"]
[Termination "Vamostodorecto won by resignation"]

1. c4 {[%clk 0:03:00.9]} 1... e5 {[%clk 0:02:59.5]} 2. g3 {[%clk 0:03:01]} 2...
Nc6 {[%clk 0:02:59.8]} 3. Bg2 {[%clk 0:03:01.5]} 3... Bc5 {[%clk 0:03:00.2]} 4.
Nc3 {[%clk 0:02:59.9]} 4... d6 {[%clk 0:03:00.5]} 5. e3 {[%clk 0:03:00]} 5... a6
{[%clk 0:02:59.7]} 6. Nge2 {[%clk 0:02:59.9]} 6... Ba7 {[%clk 0:03:00.3]} 7. O-O
{[%clk 0:02:59.7]} 7... h5 {[%clk 0:03:01]} 8. d4 {[%clk 0:02:58.9]} 8... h4
{[%clk 0:02:59.5]} 9. Bxc6+ {[%clk 0:02:58.8]} 9... bxc6 {[%clk 0:03:00.4]} 10.
dxe5 {[%clk 0:02:59.1]} 10... hxg3 {[%clk 0:03:00]} 11. fxg3 {[%clk 0:02:55.5]}
11... Qe7 {[%clk 0:02:38.2]} 12. exd6 {[%clk 0:02:34.2]} 12... Bxe3+ {[%clk
0:02:26.3]} 13. Bxe3 {[%clk 0:02:33.7]} 13... Qxe3+ {[%clk 0:02:27.2]} 14. Rf2
{[%clk 0:02:26.5]} 14... Rxh2 {[%clk 0:02:23.3]} 15. Qd4 {[%clk 0:02:09.6]}
15... Qxd4 {[%clk 0:02:03.1]} 16. Nxd4 {[%clk 0:02:07.5]} 16... Rxf2 {[%clk
0:02:02.8]} 17. Kxf2 {[%clk 0:02:07.3]} 17... cxd6 {[%clk 0:02:03.2]} 18. Nxc6
{[%clk 0:02:04.8]} 18... Bb7 {[%clk 0:01:53.5]} 19. Nb4 {[%clk 0:02:02.2]} 19...
Nf6 {[%clk 0:01:50.3]} 20. Nbd5 {[%clk 0:01:57.7]} 20... Bxd5 {[%clk 0:01:44.4]}
21. Nxd5 {[%clk 0:01:56.9]} 21... Nxd5 {[%clk 0:01:40]} 22. cxd5 {[%clk
0:01:56.8]} 22... Rb8 {[%clk 0:01:39.4]} 23. b3 {[%clk 0:01:56.3]} 23... Rb5
{[%clk 0:01:37.6]} 24. Rd1 {[%clk 0:01:55]} 24... a5 {[%clk 0:01:32.7]} 25. Rd4
{[%clk 0:01:44.5]} 25... Ke7 {[%clk 0:01:31]} 26. Ke3 {[%clk 0:01:41]} 26... Kf6
{[%clk 0:01:31]} 27. Ke4 {[%clk 0:01:37.8]} 27... Kg5 {[%clk 0:01:26.1]} 28. Rc4
{[%clk 0:01:37.1]} 28... f5+ {[%clk 0:01:25.1]} 29. Kd4 {[%clk 0:01:37]} 29...
Kg4 {[%clk 0:01:20.9]} 30. Rc6 {[%clk 0:01:33.8]} 30... Rb4+ {[%clk 0:01:19]}
31. Kd3 {[%clk 0:01:30]} 31... Kxg3 {[%clk 0:01:16.8]} 32. Rxd6 {[%clk
0:01:29.8]} 32... Rb7 {[%clk 0:01:08.5]} 33. Rg6+ {[%clk 0:01:27.8]} 33... Kf2
{[%clk 0:01:02.4]} 34. d6 {[%clk 0:01:23.7]} 34... f4 {[%clk 0:00:58.6]} 35. Ke4
{[%clk 0:01:18.2]} 35... f3 {[%clk 0:00:53.4]} 36. a3 {[%clk 0:01:12.1]} 36...
Ke2 {[%clk 0:00:52.8]} 37. Rg4 {[%clk 0:00:47.8]} 37... f2 {[%clk 0:00:48.9]}
38. Rf4 {[%clk 0:00:41.8]} 38... f1=Q {[%clk 0:00:46.9]} 39. Rxf1 {[%clk
0:00:42.2]} 39... Kxf1 {[%clk 0:00:47.8]} 40. Kd5 {[%clk 0:00:42.1]} 40... Rxb3
{[%clk 0:00:42.8]} 41. Kc4 {[%clk 0:00:41.4]} 41... Rb7 {[%clk 0:00:40.8]} 42.
Kc5 {[%clk 0:00:41.1]} 42... g5 {[%clk 0:00:34.6]} 43. Kc6 {[%clk 0:00:41]}
43... Rb3 {[%clk 0:00:31.8]} 44. d7 {[%clk 0:00:40.8]} 44... Rc3+ {[%clk
0:00:31.1]} 45. Kb6 {[%clk 0:00:39.5]} 45... Rd3 {[%clk 0:00:30.8]} 46. Kc7
{[%clk 0:00:40]} 46... g4 {[%clk 0:00:28.9]} 47. d8=Q {[%clk 0:00:40.1]} 47...
Rxd8 {[%clk 0:00:28]} 48. Kxd8 {[%clk 0:00:40.8]} 48... g3 {[%clk 0:00:27.5]}
49. Kc7 {[%clk 0:00:41.5]} 49... g2 {[%clk 0:00:27.6]} 50. Kb6 {[%clk
0:00:42.1]} 50... g1=Q+ {[%clk 0:00:28.5]} 51. Kxa5 {[%clk 0:00:42.3]} 51...
Qa7+ {[%clk 0:00:29.1]} 52. Kb4 {[%clk 0:00:42.1]} 52... Ke2 {[%clk 0:00:30]}
53. a4 {[%clk 0:00:42.2]} 53... Kd3 {[%clk 0:00:30.9]} 54. a5 {[%clk 0:00:42.4]}
54... Kd4 {[%clk 0:00:31.8]} 55. Kb5 {[%clk 0:00:42.9]} 55... Kd5 {[%clk
0:00:30.7]} 56. a6 {[%clk 0:00:42.6]} 56... Kd6 {[%clk 0:00:30.9]} 57. Ka5
{[%clk 0:00:42.1]} 57... Kc6 {[%clk 0:00:30.5]} 0-1